[Event "January 9 Late 2024"]
[Site "https://www.chess.com"]
[Date "2024.01.09"]
[Round "2"]
[White "Vachier-Lagrave, Maxime"]
[Black "Leiva, Gianmarco"]
[Result "1/2-1/2"]
[Board "3"]
[TimeControl "180+1"]
[WhiteFideId "623539"]
[BlackFideId "3804399"]
[WhiteElo "3164"]
[BlackElo "2694"]
[WhiteTeam "FRA"]
[BlackTeam "PER"]
[WhiteClock "0:01:07"]
[BlackClock "0:00:04"]

1. e4 {[%clk 0:03:00]}  c6 {[%clk 0:02:59]} 2. Nf3 {[%clk 0:02:58]}  d5 {[%clk 0:03:00]} 3. d3 {[%clk 0:02:58]}  dxe4 {[%clk 0:02:59]} 4. dxe4 {[%clk 0:02:59]}  Qxd1+ {[%clk 0:03:00]} 5. Kxd1 {[%clk 0:02:59]}  Nf6 {[%clk 0:03:01]} 6. Nfd2 {[%clk 0:03:00]}  h5 {[%clk 0:03:00]} 7. f3 {[%clk 0:02:56]}  h4 {[%clk 0:03:01]} 8. a4 {[%clk 0:02:56]}  g6 {[%clk 0:03:00]} 9. Nc4 {[%clk 0:02:54]}  Bh6 {[%clk 0:02:55]} 10. Bxh6 {[%clk 0:02:53]}  Rxh6 {[%clk 0:02:56]} 11. Kd2 {[%clk 0:02:49]}  g5 {[%clk 0:02:49]} 12. Ke3 {[%clk 0:02:48]}  Nh5 {[%clk 0:02:49]} 13. Nc3 {[%clk 0:02:41]}  Be6 {[%clk 0:02:45]} 14. Ne5 {[%clk 0:02:27]}  Nd7 {[%clk 0:02:43]} 15. Nxd7 {[%clk 0:02:26]}  Kxd7 {[%clk 0:02:42]} 16. a5 {[%clk 0:02:23]}  Kc7 {[%clk 0:02:42]} 17. Na4 {[%clk 0:02:23]}  Rd8 {[%clk 0:02:41]} 18. Nc5 {[%clk 0:02:23]}  f5 {[%clk 0:02:08]} 19. exf5 {[%clk 0:02:19]}  Bxf5 {[%clk 0:02:09]} 20. Bc4 {[%clk 0:02:07]}  Rhd6 {[%clk 0:01:57]} 21. Rhe1 {[%clk 0:02:07]}  Nf4 {[%clk 0:01:56]} 22. g3 {[%clk 0:02:06]}  Ng2+ {[%clk 0:01:56]} 23. Kf2 {[%clk 0:02:04]}  Nxe1 {[%clk 0:01:56]} 24. Rxe1 {[%clk 0:02:03]}  Rd2+ {[%clk 0:01:55]} 25. Re2 {[%clk 0:01:56]}  b6 {[%clk 0:01:42]} 26. axb6+ {[%clk 0:01:48]}  axb6 {[%clk 0:01:43]} 27. Bd3 {[%clk 0:01:46]}  Rxe2+ {[%clk 0:01:39]} 28. Kxe2 {[%clk 0:01:47]}  bxc5 {[%clk 0:01:20]} 29. Bxf5 {[%clk 0:01:46]}  Kd6 {[%clk 0:01:19]} 30. Bd3 {[%clk 0:01:42]}  Ke5 {[%clk 0:00:57]} 31. Ke3 {[%clk 0:01:41]}  Rd4 {[%clk 0:00:53]} 32. b3 {[%clk 0:01:39]}  Rd8 {[%clk 0:00:45]} 33. Be4 {[%clk 0:01:30]}  Rd1 {[%clk 0:00:36]} 34. Bxc6 {[%clk 0:01:30]}  Kd6 {[%clk 0:00:33]} 35. Be4 {[%clk 0:01:28]}  Rh1 {[%clk 0:00:32]} 36. f4 {[%clk 0:01:23]}  Rxh2 {[%clk 0:00:29]} 37. fxg5 {[%clk 0:01:24]}  hxg3 {[%clk 0:00:27]} 38. g6 {[%clk 0:01:24]}  Ke6 {[%clk 0:00:25]} 39. Kf3 {[%clk 0:01:21]}  g2 {[%clk 0:00:23]} 40. Kf2 {[%clk 0:01:21]}  Kf6 {[%clk 0:00:23]} 41. Bd3 {[%clk 0:01:18]}  g1=Q+ {[%clk 0:00:14]} 42. Kxg1 {[%clk 0:01:18]}  Rd2 {[%clk 0:00:13]} 43. Kf1 {[%clk 0:01:15]}  e5 {[%clk 0:00:11]} 44. Kg1 {[%clk 0:01:15]}  Kg7 {[%clk 0:00:10]} 45. Kf1 {[%clk 0:01:07]}  Kf6 {[%clk 0:00:11]} 46. Kg1 {[%clk 0:01:07]}  Ke7 {[%clk 0:00:04]} 47. Kf1 {[%clk 0:01:07]}  Kf6 {[%clk 0:00:04]} 1/2-1/2

[Event "January 9 Late 2024"]
[Site "https://www.chess.com"]
[Date "2024.01.09"]
[Round "2"]
[White "Cremisi, Daniel"]
[Black "Bortnyk, Olexandr"]
[Result "0-1"]
[Board "8"]
[TimeControl "180+1"]
[WhiteFideId "2089882"]
[BlackFideId "14120828"]
[WhiteElo "2678"]
[BlackElo "3110"]
[WhiteTeam "USA"]
[BlackTeam "UKR"]
[WhiteClock "0:01:06"]
[BlackClock "0:01:46"]

1. d4 {[%clk 0:02:59]}  d6 {[%clk 0:02:58]} 2. Nf3 {[%clk 0:02:58]}  Nf6 {[%clk 0:02:58]} 3. g3 {[%clk 0:02:58]}  g6 {[%clk 0:02:57]} 4. Bg2 {[%clk 0:02:58]}  Bg7 {[%clk 0:02:58]} 5. O-O {[%clk 0:02:58]}  O-O {[%clk 0:02:59]} 6. b3 {[%clk 0:02:59]}  Bf5 {[%clk 0:02:58]} 7. Bb2 {[%clk 0:02:59]}  a5 {[%clk 0:02:58]} 8. Nh4 {[%clk 0:02:58]}  Be4 {[%clk 0:02:58]} 9. Bxe4 {[%clk 0:02:58]}  Nxe4 {[%clk 0:02:59]} 10. Qd3 {[%clk 0:02:58]}  d5 {[%clk 0:02:58]} 11. Nd2 {[%clk 0:02:58]}  Nxd2 {[%clk 0:02:55]} 12. Qxd2 {[%clk 0:02:58]}  a4 {[%clk 0:02:56]} 13. b4 {[%clk 0:02:55]}  c6 {[%clk 0:02:55]} 14. a3 {[%clk 0:02:55]}  Nd7 {[%clk 0:02:55]} 15. Nf3 {[%clk 0:02:55]}  Nb6 {[%clk 0:02:56]} 16. Qc1 {[%clk 0:02:52]}  Nc4 {[%clk 0:02:54]} 17. Nd2 {[%clk 0:02:51]}  Nd6 {[%clk 0:02:36]} 18. e3 {[%clk 0:02:35]}  b5 {[%clk 0:02:36]} 19. Qd1 {[%clk 0:02:34]}  Qd7 {[%clk 0:02:36]} 20. Qe2 {[%clk 0:02:34]}  Rfe8 {[%clk 0:02:31]} 21. Nf3 {[%clk 0:02:28]}  Nc4 {[%clk 0:02:26]} 22. Bc1 {[%clk 0:02:26]}  Qg4 {[%clk 0:02:18]} 23. Re1 {[%clk 0:02:24]}  Qf5 {[%clk 0:02:17]} 24. e4 {[%clk 0:02:18]}  dxe4 {[%clk 0:02:06]} 25. Qxe4 {[%clk 0:02:19]}  Qxe4 {[%clk 0:02:03]} 26. Rxe4 {[%clk 0:02:19]}  Rad8 {[%clk 0:02:04]} 27. c3 {[%clk 0:02:18]}  e5 {[%clk 0:02:05]} 28. Nxe5 {[%clk 0:01:17]}  Bxe5 {[%clk 0:02:00]} 29. dxe5 {[%clk 0:01:17]}  Rd1+ {[%clk 0:02:01]} 30. Kg2 {[%clk 0:01:17]}  Rxe5 {[%clk 0:01:58]} 31. Rxe5 {[%clk 0:01:09]}  Nxe5 {[%clk 0:01:59]} 32. Bb2 {[%clk 0:01:10]}  Rxa1 {[%clk 0:01:58]} 33. Bxa1 {[%clk 0:01:10]}  Nc4 {[%clk 0:01:59]} 34. Kf3 {[%clk 0:01:09]}  Nxa3 {[%clk 0:01:53]} 35. Ke4 {[%clk 0:01:10]}  Kf8 {[%clk 0:01:47]} 36. Kd4 {[%clk 0:01:09]}  Nc2+ {[%clk 0:01:46]} 37. Kc5 {[%clk 0:01:09]}  Nxa1 {[%clk 0:01:47]} 38. Kxc6 {[%clk 0:01:06]}  a3 {[%clk 0:01:46]} 0-1

[Event "January 9 Late 2024"]
[Site "https://www.chess.com"]
[Date "2024.01.09"]
[Round "2"]
[White "Lund, Gunnar"]
[Black "Andreikin, Dmitry"]
[Result "0-1"]
[Board "10"]
[TimeControl "180+1"]
[WhiteFideId "1520814"]
[BlackFideId "4158814"]
[WhiteElo "2677"]
[BlackElo "3093"]
[WhiteTeam "NOR"]
[BlackTeam "FID"]
[WhiteClock "0:00:09"]
[BlackClock "0:00:28"]

1. d4 {[%clk 0:03:00]}  g6 {[%clk 0:02:56]} 2. c4 {[%clk 0:03:00]}  Bg7 {[%clk 0:02:57]} 3. Nc3 {[%clk 0:03:00]}  c5 {[%clk 0:02:53]} 4. d5 {[%clk 0:03:00]}  Bxc3+ {[%clk 0:02:52]} 5. bxc3 {[%clk 0:03:00]}  f5 {[%clk 0:02:52]} 6. h4 {[%clk 0:02:37]}  Nf6 {[%clk 0:02:45]} 7. h5 {[%clk 0:02:38]}  Nxh5 {[%clk 0:02:44]} 8. Rxh5 {[%clk 0:02:38]}  gxh5 {[%clk 0:02:44]} 9. e4 {[%clk 0:02:38]}  Qa5 {[%clk 0:02:43]} 10. Qxh5+ {[%clk 0:02:35]}  Kd8 {[%clk 0:02:43]} 11. Ne2 {[%clk 0:02:14]}  fxe4 {[%clk 0:02:38]} 12. Bg5 {[%clk 0:02:13]}  d6 {[%clk 0:02:29]} 13. Bxe7+ {[%clk 0:01:39]}  Kxe7 {[%clk 0:02:25]} 14. Qg5+ {[%clk 0:01:40]}  Ke8 {[%clk 0:02:21]} 15. Qh5+ {[%clk 0:01:38]}  Kf8 {[%clk 0:02:07]} 16. Qh6+ {[%clk 0:01:36]}  Ke8 {[%clk 0:02:01]} 17. Qh5+ {[%clk 0:01:34]}  Kd8 {[%clk 0:02:02]} 18. Qg5+ {[%clk 0:01:32]}  Kc7 {[%clk 0:02:01]} 19. Qg7+ {[%clk 0:01:33]}  Nd7 {[%clk 0:02:01]} 20. Qxh8 {[%clk 0:01:33]}  Ne5 {[%clk 0:02:02]} 21. Qxh7+ {[%clk 0:01:19]}  Bd7 {[%clk 0:02:01]} 22. Qxe4 {[%clk 0:01:20]}  Re8 {[%clk 0:02:00]} 23. O-O-O {[%clk 0:01:08]}  Qxa2 {[%clk 0:01:36]} 24. Qc2 {[%clk 0:00:59]}  Qxc2+ {[%clk 0:01:35]} 25. Kxc2 {[%clk 0:00:59]}  Ba4+ {[%clk 0:01:35]} 26. Kc1 {[%clk 0:00:57]}  Bxd1 {[%clk 0:01:36]} 27. Kxd1 {[%clk 0:00:57]}  Ng4 {[%clk 0:01:31]} 28. Nf4 {[%clk 0:00:53]}  Nxf2+ {[%clk 0:01:31]} 29. Kd2 {[%clk 0:00:54]}  Ne4+ {[%clk 0:01:31]} 30. Kc2 {[%clk 0:00:54]}  Ng5 {[%clk 0:01:28]} 31. Bd3 {[%clk 0:00:53]}  a5 {[%clk 0:01:27]} 32. Kb3 {[%clk 0:00:49]}  Re1 {[%clk 0:01:23]} 33. Nh5 {[%clk 0:00:44]}  Nf7 {[%clk 0:01:22]} 34. Nf6 {[%clk 0:00:42]}  Ne5 {[%clk 0:01:22]} 35. Bf5 {[%clk 0:00:42]}  Kb6 {[%clk 0:01:12]} 36. Be6 {[%clk 0:00:40]}  Rb1+ {[%clk 0:01:08]} 37. Kc2 {[%clk 0:00:39]}  Rg1 {[%clk 0:01:09]} 38. Ne8 {[%clk 0:00:40]}  Nxc4 {[%clk 0:01:06]} 39. Kb3 {[%clk 0:00:37]}  Nd2+ {[%clk 0:01:07]} 40. Kc2 {[%clk 0:00:38]}  Rxg2 {[%clk 0:01:07]} 41. Kd3 {[%clk 0:00:35]}  a4 {[%clk 0:00:57]} 42. Nxd6 {[%clk 0:00:35]}  a3 {[%clk 0:00:57]} 43. Nc8+ {[%clk 0:00:32]}  Ka6 {[%clk 0:00:55]} 44. d6 {[%clk 0:00:32]}  c4+ {[%clk 0:00:56]} 45. Kd4 {[%clk 0:00:26]}  Nb3+ {[%clk 0:00:43]} 46. Ke3 {[%clk 0:00:20]}  a2 {[%clk 0:00:34]} 47. d7 {[%clk 0:00:20]}  a1=Q {[%clk 0:00:33]} 48. Bxc4+ {[%clk 0:00:19]}  b5 {[%clk 0:00:33]} 49. Bxb5+ {[%clk 0:00:17]}  Kxb5 {[%clk 0:00:32]} 50. d8=Q {[%clk 0:00:17]}  Qxc3+ {[%clk 0:00:31]} 51. Qd3+ {[%clk 0:00:16]}  Qxd3+ {[%clk 0:00:30]} 52. Kxd3 {[%clk 0:00:17]}  Nc5+ {[%clk 0:00:30]} 53. Ke3 {[%clk 0:00:17]}  Rg6 {[%clk 0:00:29]} 54. Kf4 {[%clk 0:00:17]}  Re6 {[%clk 0:00:29]} 55. Kf5 {[%clk 0:00:17]}  Ka6 {[%clk 0:00:28]} 56. Kg5 {[%clk 0:00:10]}  Kb7 {[%clk 0:00:28]} 57. Kf5 {[%clk 0:00:09]}  Kxc8 {[%clk 0:00:28]} 0-1

[Event "January 9 Late 2024"]
[Site "https://www.chess.com"]
[Date "2024.01.09"]
[Round "2"]
[White "Tabatabaei, M. Amin"]
[Black "Djokic, Mihailo"]
[Result "1-0"]
[Board "11"]
[TimeControl "180+1"]
[WhiteFideId "12521213"]
[BlackFideId "976440"]
[WhiteElo "3088"]
[BlackElo "2673"]
[WhiteTeam "IRI"]
[BlackTeam "SRB"]
[WhiteClock "0:01:38"]
[BlackClock "0:01:30"]

1. e4 {[%clk 0:03:00]}  c5 {[%clk 0:02:55]} 2. Nf3 {[%clk 0:03:00]}  d6 {[%clk 0:02:55]} 3. d4 {[%clk 0:03:00]}  cxd4 {[%clk 0:02:56]} 4. Nxd4 {[%clk 0:03:00]}  Nf6 {[%clk 0:02:56]} 5. Nc3 {[%clk 0:03:01]}  g6 {[%clk 0:02:57]} 6. Be2 {[%clk 0:03:00]}  Bg7 {[%clk 0:02:57]} 7. O-O {[%clk 0:03:00]}  Nc6 {[%clk 0:02:58]} 8. Nb3 {[%clk 0:02:59]}  O-O {[%clk 0:02:57]} 9. Re1 {[%clk 0:02:59]}  Be6 {[%clk 0:02:57]} 10. Bf1 {[%clk 0:02:59]}  Rc8 {[%clk 0:02:58]} 11. Nd5 {[%clk 0:02:54]}  Re8 {[%clk 0:02:54]} 12. c3 {[%clk 0:02:53]}  Na5 {[%clk 0:02:35]} 13. Bg5 {[%clk 0:02:49]}  Nc4 {[%clk 0:02:29]} 14. Bxc4 {[%clk 0:02:38]}  Rxc4 {[%clk 0:02:29]} 15. Bxf6 {[%clk 0:02:39]}  exf6 {[%clk 0:02:29]} 16. Qd3 {[%clk 0:02:38]}  b5 {[%clk 0:02:20]} 17. Nd4 {[%clk 0:02:33]}  a6 {[%clk 0:02:17]} 18. Nxe6 {[%clk 0:02:29]}  fxe6 {[%clk 0:02:16]} 19. Ne3 {[%clk 0:02:28]}  Rc6 {[%clk 0:02:16]} 20. a4 {[%clk 0:02:21]}  Qb6 {[%clk 0:02:08]} 21. axb5 {[%clk 0:02:15]}  axb5 {[%clk 0:02:08]} 22. Ra3 {[%clk 0:02:06]}  b4 {[%clk 0:02:06]} 23. Rb3 {[%clk 0:02:05]}  Ra8 {[%clk 0:01:51]} 24. Rxb4 {[%clk 0:02:03]}  Qc7 {[%clk 0:01:49]} 25. h4 {[%clk 0:02:02]}  Rc5 {[%clk 0:01:47]} 26. Rd1 {[%clk 0:02:00]}  Bf8 {[%clk 0:01:45]} 27. Rb5 {[%clk 0:01:50]}  Rxb5 {[%clk 0:01:44]} 28. Qxb5 {[%clk 0:01:51]}  Rb8 {[%clk 0:01:45]} 29. Qe2 {[%clk 0:01:49]}  Qb7 {[%clk 0:01:46]} 30. Qc4 {[%clk 0:01:47]}  Kf7 {[%clk 0:01:40]} 31. b4 {[%clk 0:01:46]}  Rc8 {[%clk 0:01:40]} 32. Qd3 {[%clk 0:01:46]}  Qc6 {[%clk 0:01:38]} 33. c4 {[%clk 0:01:45]}  Qa4 {[%clk 0:01:38]} 34. b5 {[%clk 0:01:41]}  h5 {[%clk 0:01:38]} 35. Rb1 {[%clk 0:01:38]}  Bh6 {[%clk 0:01:34]} 36. Qxd6 {[%clk 0:01:38]}  Bxe3 {[%clk 0:01:30]} 37. Qd7+ {[%clk 0:01:38]} 1-0

[Event "January 9 Late 2024"]
[Site "https://www.chess.com"]
[Date "2024.01.09"]
[Round "2"]
[White "Bluebaum, Matthias"]
[Black "Atanasov, Anthony"]
[Result "1-0"]
[Board "13"]
[TimeControl "180+1"]
[WhiteFideId "24651516"]
[BlackFideId "2623897"]
[WhiteElo "3077"]
[BlackElo "2671"]
[WhiteTeam "GER"]
[BlackTeam "CAN"]
[WhiteClock "0:00:54"]
[BlackClock "0:00:13"]

1. d4 {[%clk 0:03:00]}  Nf6 {[%clk 0:02:57]} 2. c4 {[%clk 0:03:01]}  g6 {[%clk 0:02:55]} 3. Nc3 {[%clk 0:03:01]}  d5 {[%clk 0:02:55]} 4. cxd5 {[%clk 0:03:02]}  Nxd5 {[%clk 0:02:55]} 5. e4 {[%clk 0:03:03]}  Nxc3 {[%clk 0:02:56]} 6. bxc3 {[%clk 0:03:04]}  Bg7 {[%clk 0:02:56]} 7. Nf3 {[%clk 0:03:05]}  c5 {[%clk 0:02:56]} 8. Bb5+ {[%clk 0:03:05]}  Nc6 {[%clk 0:02:55]} 9. O-O {[%clk 0:03:04]}  O-O {[%clk 0:02:48]} 10. Bxc6 {[%clk 0:03:05]}  bxc6 {[%clk 0:02:46]} 11. Qc2 {[%clk 0:03:06]}  Bg4 {[%clk 0:02:42]} 12. Ne5 {[%clk 0:03:05]}  Bxe5 {[%clk 0:02:39]} 13. dxe5 {[%clk 0:03:05]}  Qc7 {[%clk 0:02:30]} 14. f4 {[%clk 0:02:57]}  Rfd8 {[%clk 0:02:27]} 15. h3 {[%clk 0:02:52]}  Be6 {[%clk 0:02:25]} 16. Be3 {[%clk 0:02:51]}  Qa5 {[%clk 0:02:18]} 17. f5 {[%clk 0:02:48]}  Bc4 {[%clk 0:02:16]} 18. Rfd1 {[%clk 0:02:44]}  Rxd1+ {[%clk 0:02:12]} 19. Rxd1 {[%clk 0:02:44]}  Rd8 {[%clk 0:02:11]} 20. Rxd8+ {[%clk 0:02:39]}  Qxd8 {[%clk 0:02:12]} 21. Bxc5 {[%clk 0:02:40]}  Qd3 {[%clk 0:02:00]} 22. Qxd3 {[%clk 0:02:24]}  Bxd3 {[%clk 0:02:00]} 23. Bxa7 {[%clk 0:02:25]}  Bxe4 {[%clk 0:02:01]} 24. f6 {[%clk 0:02:25]}  exf6 {[%clk 0:01:59]} 25. exf6 {[%clk 0:02:26]}  Kf8 {[%clk 0:01:52]} 26. a4 {[%clk 0:02:24]}  Ke8 {[%clk 0:01:51]} 27. Kf2 {[%clk 0:02:24]}  Kd7 {[%clk 0:01:51]} 28. g3 {[%clk 0:02:25]}  Kd6 {[%clk 0:01:45]} 29. Ke3 {[%clk 0:02:25]}  Bc2 {[%clk 0:01:44]} 30. a5 {[%clk 0:02:25]}  h5 {[%clk 0:01:39]} 31. Kd4 {[%clk 0:02:20]}  Bf5 {[%clk 0:01:25]} 32. Bb8+ {[%clk 0:02:17]}  Kd7 {[%clk 0:01:23]} 33. a6 {[%clk 0:01:56]}  Bxh3 {[%clk 0:01:03]} 34. Kc5 {[%clk 0:01:37]}  Kc8 {[%clk 0:01:02]} 35. Bf4 {[%clk 0:01:38]}  Bf1 {[%clk 0:00:52]} 36. c4 {[%clk 0:01:32]}  Bg2 {[%clk 0:00:51]} 37. Kd6 {[%clk 0:01:27]}  Bf1 {[%clk 0:00:50]} 38. Kxc6 {[%clk 0:01:11]}  Bd3 {[%clk 0:00:44]} 39. a7 {[%clk 0:00:59]}  Be4+ {[%clk 0:00:43]} 40. Kd6 {[%clk 0:01:00]}  Kb7 {[%clk 0:00:33]} 41. Ke7 {[%clk 0:01:00]}  g5 {[%clk 0:00:32]} 42. Bxg5 {[%clk 0:01:01]}  Bg6 {[%clk 0:00:32]} 43. Be3 {[%clk 0:01:01]}  Ka8 {[%clk 0:00:29]} 44. Bb6 {[%clk 0:00:55]}  Kb7 {[%clk 0:00:29]} 45. c5 {[%clk 0:00:56]}  Ka8 {[%clk 0:00:20]} 46. c6 {[%clk 0:00:54]}  Bf5 {[%clk 0:00:20]} 47. Kxf7 {[%clk 0:00:53]}  h4 {[%clk 0:00:20]} 48. gxh4 {[%clk 0:00:54]}  Be6+ {[%clk 0:00:15]} 49. Ke7 {[%clk 0:00:54]}  Bf7 {[%clk 0:00:13]} 50. c7 {[%clk 0:00:54]} 1-0

[Event "January 9 Late 2024"]
[Site "https://www.chess.com"]
[Date "2024.01.09"]
[Round "2"]
[White "Keymer, Vincent"]
[Black "Rosen, Eric"]
[Result "1-0"]
[Board "15"]
[TimeControl "180+1"]
[WhiteFideId "12940690"]
[BlackFideId "2032562"]
[WhiteElo "3058"]
[BlackElo "2667"]
[WhiteTeam "GER"]
[BlackTeam "USA"]
[WhiteClock "0:02:41"]
[BlackClock "0:00:00"]

1. Nf3 {[%clk 0:03:00]}  d5 {[%clk 0:02:57]} 2. e3 {[%clk 0:03:01]}  Nf6 {[%clk 0:02:53]} 3. c4 {[%clk 0:03:01]}  e6 {[%clk 0:02:54]} 4. Nc3 {[%clk 0:03:01]}  Nbd7 {[%clk 0:02:50]} 5. b3 {[%clk 0:03:00]}  a6 {[%clk 0:02:50]} 6. Bb2 {[%clk 0:03:00]}  b6 {[%clk 0:02:50]} 7. cxd5 {[%clk 0:02:59]}  exd5 {[%clk 0:02:50]} 8. g3 {[%clk 0:02:59]}  Bb7 {[%clk 0:02:45]} 9. Bg2 {[%clk 0:03:00]}  Bd6 {[%clk 0:02:45]} 10. O-O {[%clk 0:03:00]}  Qe7 {[%clk 0:02:36]} 11. Rc1 {[%clk 0:03:00]}  O-O-O {[%clk 0:02:21]} 12. Ne2 {[%clk 0:02:59]}  Kb8 {[%clk 0:02:05]} 13. Ned4 {[%clk 0:02:58]}  Ba3 {[%clk 0:01:13]} 14. Nf5 {[%clk 0:02:45]}  Qf8 {[%clk 0:01:13]} 15. Bxa3 {[%clk 0:02:45]}  Qxa3 {[%clk 0:01:14]} 16. Qc2 {[%clk 0:02:46]}  c5 {[%clk 0:00:52]} 17. Nxg7 {[%clk 0:02:46]}  h5 {[%clk 0:00:41]} 18. Nf5 {[%clk 0:02:46]}  Ng4 {[%clk 0:00:37]} 19. Nd6 {[%clk 0:02:43]}  Nde5 {[%clk 0:00:31]} 20. Nxe5 {[%clk 0:02:41]}  Nxe5 {[%clk 0:00:31]} 21. Nxb7 {[%clk 0:02:42]}  Kxb7 {[%clk 0:00:32]} 22. d4 {[%clk 0:02:42]}  Nc6 {[%clk 0:00:13]} 23. dxc5 {[%clk 0:02:43]}  Qxc5 {[%clk 0:00:05]} 24. Qxc5 {[%clk 0:02:42]}  bxc5 {[%clk 0:00:06]} 25. Rxc5 {[%clk 0:02:43]}  Kb6 {[%clk 0:00:05]} 26. Rxd5 {[%clk 0:02:43]}  Nb4 {[%clk 0:00:00]} 27. Rf5 {[%clk 0:02:41]} 1-0

[Event "January 9 Late 2024"]
[Site "https://www.chess.com"]
[Date "2024.01.09"]
[Round "2"]
[White "Sarana, Alexey"]
[Black "Msellek, Ilyass"]
[Result "1-0"]
[Board "17"]
[TimeControl "180+1"]
[WhiteFideId "24133795"]
[BlackFideId "675938"]
[WhiteElo "3048"]
[BlackElo "2666"]
[WhiteTeam "SRB"]
[BlackTeam "MAR"]
[WhiteClock "0:01:09"]
[BlackClock "0:00:55"]

1. d4 {[%clk 0:03:00]}  Nf6 {[%clk 0:02:57]} 2. c4 {[%clk 0:03:01]}  g6 {[%clk 0:02:58]} 3. Nc3 {[%clk 0:03:01]}  Bg7 {[%clk 0:02:58]} 4. e4 {[%clk 0:03:01]}  d6 {[%clk 0:02:59]} 5. Nf3 {[%clk 0:03:02]}  O-O {[%clk 0:02:59]} 6. Be2 {[%clk 0:03:02]}  e5 {[%clk 0:03:00]} 7. Be3 {[%clk 0:03:03]}  Ng4 {[%clk 0:02:40]} 8. Bg5 {[%clk 0:03:02]}  f6 {[%clk 0:02:39]} 9. Bh4 {[%clk 0:03:03]}  Nh6 {[%clk 0:02:15]} 10. dxe5 {[%clk 0:02:57]}  dxe5 {[%clk 0:02:13]} 11. Qxd8 {[%clk 0:02:55]}  Rxd8 {[%clk 0:02:14]} 12. Nd5 {[%clk 0:02:54]}  g5 {[%clk 0:02:08]} 13. Nxc7 {[%clk 0:02:48]}  gxh4 {[%clk 0:02:08]} 14. Nxa8 {[%clk 0:02:48]}  Na6 {[%clk 0:02:07]} 15. c5 {[%clk 0:02:43]}  Nxc5 {[%clk 0:02:05]} 16. Nc7 {[%clk 0:02:40]}  h3 {[%clk 0:02:04]} 17. Rg1 {[%clk 0:02:28]}  hxg2 {[%clk 0:01:49]} 18. Rxg2 {[%clk 0:02:29]}  Nxe4 {[%clk 0:01:49]} 19. Rd1 {[%clk 0:02:16]}  Rxd1+ {[%clk 0:01:31]} 20. Bxd1 {[%clk 0:02:17]}  Bh3 {[%clk 0:01:27]} 21. Rg1 {[%clk 0:02:17]}  Ng4 {[%clk 0:01:26]} 22. Ne6 {[%clk 0:01:20]}  Ngxf2 {[%clk 0:01:09]} 23. Rxg7+ {[%clk 0:01:15]}  Kh8 {[%clk 0:01:10]} 24. Re7 {[%clk 0:01:14]}  Nd3+ {[%clk 0:01:10]} 25. Ke2 {[%clk 0:01:12]}  Bxe6 {[%clk 0:00:55]} 26. Kxd3 {[%clk 0:01:09]} 1-0

[Event "January 9 Late 2024"]
[Site "https://www.chess.com"]
[Date "2024.01.09"]
[Round "2"]
[White "Krishnan, Varun"]
[Black "Fedoseev, Vladimir"]
[Result "1/2-1/2"]
[Board "18"]
[TimeControl "180+1"]
[WhiteFideId "5054508"]
[BlackFideId "24130737"]
[WhiteElo "2665"]
[BlackElo "3043"]
[WhiteTeam "USA"]
[BlackTeam "SLO"]
[WhiteClock "0:00:12"]
[BlackClock "0:00:07"]

1. d4 {[%clk 0:03:00]}  d5 {[%clk 0:02:59]} 2. c4 {[%clk 0:03:00]}  c6 {[%clk 0:03:00]} 3. Nc3 {[%clk 0:02:59]}  e5 {[%clk 0:02:57]} 4. cxd5 {[%clk 0:02:54]}  cxd5 {[%clk 0:02:57]} 5. e4 {[%clk 0:02:40]}  Bb4 {[%clk 0:02:30]} 6. exd5 {[%clk 0:02:29]}  Bxc3+ {[%clk 0:02:04]} 7. bxc3 {[%clk 0:02:28]}  Qxd5 {[%clk 0:02:04]} 8. Nf3 {[%clk 0:02:16]}  exd4 {[%clk 0:02:03]} 9. cxd4 {[%clk 0:02:11]}  Nf6 {[%clk 0:02:00]} 10. Qa4+ {[%clk 0:01:55]}  Bd7 {[%clk 0:01:53]} 11. Qa3 {[%clk 0:01:52]}  Nc6 {[%clk 0:01:49]} 12. Be3 {[%clk 0:01:34]}  Qa5+ {[%clk 0:01:40]} 13. Qxa5 {[%clk 0:01:34]}  Nxa5 {[%clk 0:01:41]} 14. Ne5 {[%clk 0:01:33]}  Nd5 {[%clk 0:01:39]} 15. Nxd7 {[%clk 0:01:28]}  Kxd7 {[%clk 0:01:39]} 16. Bb5+ {[%clk 0:01:29]}  Kd6 {[%clk 0:01:36]} 17. O-O {[%clk 0:01:29]}  a6 {[%clk 0:01:34]} 18. Bd3 {[%clk 0:01:28]}  Rac8 {[%clk 0:01:33]} 19. Rac1 {[%clk 0:01:27]}  g6 {[%clk 0:01:31]} 20. Bd2 {[%clk 0:01:22]}  Rxc1 {[%clk 0:01:30]} 21. Rxc1 {[%clk 0:01:21]}  Nc6 {[%clk 0:01:31]} 22. Be3 {[%clk 0:01:17]}  Re8 {[%clk 0:01:30]} 23. Bd2 {[%clk 0:00:48]}  Nxd4 {[%clk 0:01:29]} 24. Kf1 {[%clk 0:00:48]}  b5 {[%clk 0:01:26]} 25. h4 {[%clk 0:00:38]}  h5 {[%clk 0:01:23]} 26. g3 {[%clk 0:00:38]}  Nf3 {[%clk 0:01:19]} 27. Rd1 {[%clk 0:00:37]}  Nxd2+ {[%clk 0:01:19]} 28. Rxd2 {[%clk 0:00:38]}  Kc5 {[%clk 0:01:20]} 29. Bc2 {[%clk 0:00:39]}  Re7 {[%clk 0:01:15]} 30. Bb3 {[%clk 0:00:38]}  Nc3 {[%clk 0:01:15]} 31. Rd3 {[%clk 0:00:37]}  b4 {[%clk 0:01:15]} 32. Rd8 {[%clk 0:00:34]}  a5 {[%clk 0:01:12]} 33. Ra8 {[%clk 0:00:34]}  Kb6 {[%clk 0:01:09]} 34. Rb8+ {[%clk 0:00:34]}  Ka7 {[%clk 0:00:56]} 35. Rf8 {[%clk 0:00:34]}  a4 {[%clk 0:00:54]} 36. Bxf7 {[%clk 0:00:33]}  Nxa2 {[%clk 0:00:49]} 37. Bxa2 {[%clk 0:00:29]}  Kb6 {[%clk 0:00:42]} 38. Rb8+ {[%clk 0:00:22]}  Kc5 {[%clk 0:00:36]} 39. Rc8+ {[%clk 0:00:22]}  Kb6 {[%clk 0:00:33]} 40. Rb8+ {[%clk 0:00:22]}  Kc5 {[%clk 0:00:17]} 41. Rc8+ {[%clk 0:00:22]}  Kd6 {[%clk 0:00:15]} 42. Rb8 {[%clk 0:00:22]}  Re4 {[%clk 0:00:14]} 43. Bb1 {[%clk 0:00:18]}  Rd4 {[%clk 0:00:13]} 44. Bxg6 {[%clk 0:00:17]}  Kc7 {[%clk 0:00:11]} 45. Rb5 {[%clk 0:00:17]}  Kc6 {[%clk 0:00:10]} 46. Be8+ {[%clk 0:00:16]}  Kd6 {[%clk 0:00:10]} 47. Bxh5 {[%clk 0:00:13]}  b3 {[%clk 0:00:09]} 48. Bf7 {[%clk 0:00:13]}  Kc6 {[%clk 0:00:06]} 49. Be8+ {[%clk 0:00:12]}  Kc7 {[%clk 0:00:06]} 50. Bf7 {[%clk 0:00:13]}  Kc6 {[%clk 0:00:07]} 51. Rb8 {[%clk 0:00:12]}  Kc7 {[%clk 0:00:07]} 52. Rb5 {[%clk 0:00:12]}  Kc6 {[%clk 0:00:07]} 1/2-1/2